bitfinex/quotes_ETHUSD_20241013
["timestamp","ask_amount","ask_price","bid_price","bid_amount"]
[1728806180002,0.8247,2468.8,2468.6,1.21048154]
[1728806180760,0.8247,2468.8,2468.6,6.76091786]
[1728806181007,0.8247,2468.8,2468.6,1.21048154]
[1728806188547,0.8247,2468.8,2468.5,0.41224185]
[1728806189929,4.87525,2468.8,2468.5,0.41224185]
[1728806190129,0.8289,2468.7,2468.3,4.49957632]
[1728806191536,0.8289,2468.7,2468.4,0.41267031]
[1728806192165,0.8289,2468.7,2468.4,1.91224663]
[1728806192654,0.8289,2468.7,2468.4,0.41267031]
[1728806193258,1.63138388,2469.0,2468.6,1.49957632]
[1728806193418,1.63138388,2469.0,2468.7,1.49957632]
[1728806193614,1.63138388,2469.0,2468.5,0.7799]
[1728806193615,1.63138388,2469.0,2468.6,5.55042632]
[1728806194316,0.7794,2469.0,2468.6,5.55042632]
[1728806194546,0.7794,2469.0,2468.7,0.63303263]
[1728806195270,0.7794,2469.0,2468.7,2.13260895]
[1728806195455,1.63138388,2469.2,2468.8,1.49957632]
[1728806195623,1.63138388,2469.2,2468.7,6.18321895]
[1728806196135,1.63138388,2469.2,2468.8,1.49957632]
[1728806196336,1.63138388,2469.2,2468.8,1.02340689]
[1728806197022,0.7794,2469.2,2468.8,2.52298321]
[1728806198164,1.63138388,2469.2,2468.8,2.52298321]
[1728806198365,0.7794,2469.2,2468.8,2.52298321]
[1728806198521,1.63138388,2469.2,2468.8,2.52298321]
[1728806198953,1.63138388,2469.2,2468.8,1.02340689]
[1728806199163,4.8293,2469.2,2468.9,0.31560158]
[1728806201447,0.7794,2469.2,2469.0,1.49957632]
[1728806201631,0.85198388,2469.3,2469.1,1.49957632]
[1728806201832,0.85198388,2469.5,2469.2,1.49957632]
[1728806202066,0.85198388,2469.5,2469.3,1.49957632]
[1728806202829,1.63138388,2469.6,2469.3,1.49957632]
[1728806204447,0.7794,2469.6,2469.3,1.49957632]
[1728806209643,0.7794,2469.6,2469.2,6.58096923]
[1728806209840,0.7794,2469.6,2469.3,0.73608692]
[1728806210038,0.7794,2469.6,2469.3,2.23566324]
[1728806210258,0.7794,2469.6,2469.3,0.73608692]
[1728806212559,0.7794,2469.6,2469.2,2.13253395]
[1728806220753,4.82866,2469.6,2469.2,0.63295763]
[1728806226745,4.81186,2469.5,2469.1,0.12680391]
[1728806226941,0.7623,2469.4,2469.0,0.12680391]
[1728806227148,0.7623,2469.4,2469.0,3.12680391]
[1728806227351,0.7623,2469.4,2469.0,0.12680391]
[1728806227979,4.81188,2469.4,2469.0,0.12680391]
[1728806229384,4.81188,2469.4,2469.0,4.49957632]
[1728806229549,4.81188,2469.4,2469.0,4.62638899]
[1728806230880,4.81188,2469.4,2469.0,5.14604856]
[1728806231040,0.7623,2469.4,2469.0,5.01923589]
[1728806232495,0.7623,2469.4,2469.0,9.06942589]
[1728806232801,0.7623,2469.4,2469.1,0.12681204]
[1728806233098,0.7623,2469.4,2469.1,0.12681131]
[1728806233656,0.7623,2469.4,2469.0,9.06942589]
[1728806233974,0.7623,2469.4,2469.1,1.10540887]
[1728806234187,0.7623,2469.4,2469.1,0.9785964]
[1728806237162,0.7623,2469.4,2469.2,0.12681196]
[1728806237501,0.7623,2469.4,2469.0,9.06942589]
[1728806237875,0.7623,2469.4,2469.1,0.12681178]
[1728806238088,0.7623,2469.4,2469.0,9.06942589]
[1728806238291,0.7623,2469.4,2469.1,0.12681233]
[1728806238599,0.7623,2469.4,2469.2,0.12681233]
[1728806238806,0.7623,2469.4,2469.0,9.06942589]
[1728806238960,0.7623,2469.4,2469.1,1.1054086]
[1728806239302,0.7623,2469.4,2469.2,0.1268122]
[1728806239605,1.61428388,2469.4,2469.1,0.9785964]
[1728806239804,1.61428388,2469.4,2469.2,0.12681231]
[1728806240106,1.61428388,2469.4,2469.0,5.01923589]
[1728806240259,1.61428388,2469.4,2469.1,0.12681231]
[1728806240468,1.61428388,2469.4,2469.2,0.12681231]
[1728806240803,1.61428388,2469.4,2469.3,0.12681231]
[1728806241603,1.61428388,2469.4,2469.0,5.01923589]
[1728806241809,1.61428388,2469.4,2469.1,0.12681234]
[1728806242114,1.61428388,2469.4,2469.2,0.12681234]
[1728806242311,1.61428388,2469.4,2469.3,0.12681234]
[1728806243398,0.7623,2469.4,2469.3,0.12681234]
[1728806243805,2.04032684,2469.4,2469.3,0.12681234]
[1728806244107,0.7623,2469.4,2469.3,0.12681234]
[1728806244405,2.04032684,2469.4,2469.3,0.12681234]
[1728806245460,2.04032684,2469.4,2469.0,3.0]
[1728806245660,0.85120886,2469.3,2469.1,1.05345865]
[1728806245861,0.85120886,2469.3,2469.2,0.12681021]
[1728806246686,4.90093886,2469.3,2469.2,0.12681021]
[1728806246894,7.59713316,2469.3,2469.2,0.12681021]
[1728806247207,0.7698,2469.2,2468.7,8.79957632]
[1728806247364,0.8514871,2469.1,2468.8,0.12682542]
[1728806247671,0.8514871,2469.1,2468.9,0.12682542]
[1728806247879,0.8514871,2469.0,2468.6,7.18784444]
[1728806248213,0.8514871,2469.0,2468.7,0.9730188]
[1728806248375,0.8514871,2469.0,2468.8,0.12682614]
[1728806248564,0.8514871,2469.1,2468.9,0.12682614]
[1728806248768,0.8514871,2469.1,2469.0,0.12682614]
[1728806254605,1.6212871,2469.2,2469.0,0.12682614]
[1728806254825,1.6212871,2469.2,2469.1,0.12682614]
[1728806255203,0.7698,2469.2,2469.1,0.12682614]
[1728806255720,1.62076922,2469.2,2469.1,0.12682614]
[1728806256247,0.7698,2469.2,2469.1,0.12682614]
[1728806256583,1.62074935,2469.2,2469.1,0.12682614]
[1728806256835,1.62074935,2469.2,2468.8,0.3031212]
[1728806256995,4.81969,2469.2,2469.1,0.12682568]
[1728806257321,5.67063935,2469.2,2469.1,0.12682568]
[1728806260541,5.67063935,2469.2,2468.9,0.30314905]
[1728806260542,5.67063935,2469.2,2468.7,1.49957632]
[1728806260854,7.17021567,2469.2,2469.1,0.12682557]
[1728806261029,5.67063935,2469.2,2469.1,0.12682557]
[1728806265357,4.81969,2469.2,2469.1,0.12682557]
[1728806265566,6.31926632,2469.2,2469.1,0.12682557]
[1728806265766,4.81969,2469.2,2469.1,0.12682557]
[1728806267422,7.65384244,2469.2,2469.1,0.12682557]
[1728806267651,8.9310731,2469.2,2469.1,0.12682557]
[1728806268069,4.05007,2469.1,2468.6,3.7881]
[1728806268272,4.05007,2469.1,2468.7,0.12682642]
[1728806268273,0.85099402,2469.0,2468.7,0.12682642]
[1728806268568,0.85099402,2469.0,2468.8,0.12682642]
[1728806268760,4.90106402,2469.1,2468.9,0.12682642]
[1728806268919,4.90106402,2469.1,2469.0,0.12682642]
[1728806270092,7.82033686,2469.1,2469.0,0.12682642]
[1728806270272,8.61923686,2469.1,2469.0,0.12682642]
[1728806270582,7.76824284,2469.1,2469.0,0.12682642]
[1728806270769,4.05031,2469.0,2468.5,4.19738055]
[1728806270957,4.90141888,2469.0,2468.6,0.12683677]
[1728806271157,4.90141888,2469.0,2468.7,0.12683677]
[1728806271354,4.90141888,2469.0,2468.8,0.12683677]
[1728806271564,4.90141888,2469.0,2468.5,4.19738055]
[1728806271745,4.90141888,2469.0,2468.9,0.12683541]
[1728806275168,4.90141888,2469.0,2468.9,0.1268351]
[1728806275386,4.90141888,2469.0,2468.5,5.28187632]
[1728806275547,4.90141888,2469.0,2468.6,0.12683505]
[1728806275752,4.90141888,2469.0,2468.7,0.1268351]
[1728806276051,4.90141888,2469.0,2468.8,0.1268351]
[1728806276257,7.09629489,2469.0,2468.9,0.1268351]
[1728806276448,7.09629489,2469.0,2468.3,0.8063]
[1728806276449,0.7722,2468.7,2468.3,0.8063]
[1728806276692,2.27177632,2468.7,2468.4,0.1268461]
[1728806276883,0.7722,2468.7,2468.5,0.1268461]
[1728806277092,0.7722,2468.7,2468.6,0.1268461]
[1728806279200,0.7722,2468.7,2468.6,0.12684978]
[1728806280293,6.32248632,2468.7,2468.6,0.12684978]
[1728806280504,7.49308379,2468.7,2468.6,0.12684978]
[1728806281205,7.49308379,2468.7,2468.6,0.12685469]
[1728806281359,7.49308379,2468.7,2468.1,3.8063]
[1728806281704,1.49957632,2468.6,2468.2,0.1268523]
[1728806281884,1.49957632,2468.6,2468.3,0.1268523]
[1728806282069,5.55050632,2468.6,2468.4,0.1268523]
[1728806282277,5.55050632,2468.6,2468.5,0.1268523]
[1728806282694,5.55044632,2468.6,2468.5,0.1268523]
[1728806284101,1.49957632,2468.6,2468.5,0.1268523]
[1728806284303,2.27177632,2468.7,2468.5,0.1268523]
[1728806284693,2.27177632,2468.7,2468.1,9.35750632]
[1728806284899,2.27177632,2468.7,2468.2,4.46777455]
[1728806285110,2.27177632,2468.7,2468.3,0.12685192]
[1728806285310,2.27177632,2468.7,2468.2,4.34092263]
[1728806285525,2.27177632,2468.7,2468.4,0.12685176]
[1728806285807,2.27177632,2468.7,2468.5,0.12685176]
[1728806285984,2.27177632,2468.7,2468.2,3.0]
[1728806286187,6.32249632,2468.7,2468.3,0.12685177]
[1728806286384,6.32249632,2468.7,2468.4,0.12685177]
[1728806286718,6.32249632,2468.7,2468.5,0.12685177]
[1728806286888,6.32249632,2468.7,2468.2,3.0]
[1728806287095,6.32249632,2468.7,2468.3,0.12685188]
[1728806287303,6.32249632,2468.7,2468.4,0.12685188]
[1728806287486,6.32249632,2468.7,2468.2,3.0]
[1728806287667,6.32249632,2468.7,2468.3,0.1268518]
[1728806287873,6.32249632,2468.7,2468.4,0.1268518]
[1728806288111,6.32249632,2468.7,2468.2,3.0]
[1728806288420,6.32249632,2468.7,2468.3,0.12685189]
[1728806288571,6.32249632,2468.7,2468.4,0.12685189]
[1728806288776,6.32249632,2468.7,2468.2,3.0]
[1728806289097,6.32249632,2468.7,2468.3,0.12685193]
[1728806289298,6.32249632,2468.7,2468.4,0.12685193]
[1728806289612,6.32249632,2468.7,2468.2,3.0]
[1728806289915,6.32249632,2468.7,2468.3,0.12685193]
[1728806290214,6.32249632,2468.7,2468.4,0.12685193]
[1728806290434,6.32249632,2468.7,2468.2,4.34092263]
[1728806290435,6.32249632,2468.7,2468.2,3.0]
[1728806290718,1.49957632,2468.6,2468.3,0.12685186]
[1728806290876,6.32249632,2468.7,2468.4,0.12685186]
[1728806291077,6.32249632,2468.7,2468.1,4.85794]
[1728806291303,6.32249632,2468.7,2468.2,1.16777561]
[1728806291496,6.32249632,2468.7,2468.3,0.12685198]
[1728806291716,6.32249632,2468.7,2468.4,0.12685198]
[1728806291871,6.32249632,2468.7,2468.1,4.85794]
[1728806292075,6.32249632,2468.7,2468.2,0.12685205]
[1728806292377,6.32249632,2468.7,2468.3,0.12685205]
[1728806292789,1.49957632,2468.6,2468.3,0.12685205]
[1728806293089,5.55047632,2468.6,2468.3,0.12685205]
[1728806293291,5.55047632,2468.6,2468.1,3.8063]
[1728806293610,5.55047632,2468.6,2468.1,4.82699844]
[1728806295517,5.55047632,2468.6,2468.2,0.12686189]
[1728806295818,5.55047632,2468.6,2468.3,0.12686189]
[1728806295999,5.55047632,2468.6,2468.4,0.12685935]
[1728806296212,5.55047632,2468.6,2468.1,3.8063]
[1728806296409,5.55047632,2468.6,2468.2,0.12686125]
[1728806296727,5.55047632,2468.6,2468.1,4.70794451]
[1728806296728,5.55047632,2468.6,2468.3,0.12686157]
[1728806296893,5.55047632,2468.6,2468.1,4.70794451]
[1728806297216,5.55047632,2468.6,2468.2,0.12686013]
[1728806297417,5.55047632,2468.6,2468.3,0.12686013]
[1728806297595,4.0509,2468.6,2468.1,8.75962451]
[1728806297917,4.0509,2468.6,2468.2,1.55795228]
[1728806298116,4.0509,2468.6,2468.3,0.1268602]
[1728806298328,4.0509,2468.6,2468.2,1.43109208]
[1728806298519,4.0509,2468.6,2468.3,0.12685948]
[1728806298717,4.0509,2468.6,2468.2,1.43109208]
[1728806298895,4.0509,2468.6,2468.3,0.12685945]
[1728806299085,4.0509,2468.6,2468.2,1.43109208]
[1728806299281,4.0509,2468.6,2468.3,0.12685952]
[1728806299517,4.0509,2468.6,2468.2,1.43109208]
[1728806299726,4.0509,2468.6,2468.3,0.1268594]
[1728806299896,4.0509,2468.6,2468.2,1.43109208]
[1728806300099,4.0509,2468.6,2468.3,0.1268594]
[1728806300298,5.55047632,2468.6,2468.2,1.43109208]
[1728806300499,5.55047632,2468.6,2468.3,0.12686032]
[1728806300803,5.55047632,2468.6,2468.1,3.8063]
[1728806300997,5.55047632,2468.6,2468.2,0.12686034]
[1728806301198,5.55047632,2468.6,2468.3,0.12686034]
[1728806301413,5.55047632,2468.6,2468.1,3.8063]
[1728806301614,5.55047632,2468.6,2468.2,0.1268603]
[1728806301786,5.55047632,2468.6,2468.3,0.1268603]
[1728806301987,5.55047632,2468.6,2468.1,4.74205963]
[1728806302402,5.55047632,2468.6,2468.2,0.12686012]
[1728806302608,5.55047632,2468.6,2468.3,0.12686012]
[1728806302808,5.55047632,2468.6,2468.1,4.74205963]
[1728806303126,5.55047632,2468.6,2468.2,0.12686097]
[1728806303298,5.55047632,2468.6,2468.3,0.12686097]
[1728806303502,5.55047632,2468.6,2468.1,8.79372963]
[1728806303723,5.55047632,2468.6,2468.2,0.12686116]
[1728806304025,5.55047632,2468.6,2468.1,4.74205963]
[1728806304026,5.55047632,2468.6,2468.3,0.12686116]
[1728806304230,5.55047632,2468.6,2468.1,4.74205963]
[1728806304422,5.55047632,2468.6,2468.2,1.41141196]
[1728806304593,5.55047632,2468.6,2468.3,0.12686]
[1728806304793,5.55047632,2468.6,2468.1,8.79372963]
[1728806305007,5.55047632,2468.6,2468.2,0.12686]
[1728806305206,5.55047632,2468.6,2468.3,0.12686]
[1728806305503,5.55047632,2468.6,2468.1,8.79370963]
[1728806305704,5.55047632,2468.6,2468.2,1.08663735]
[1728806313645,6.40154914,2468.6,2468.2,1.08663735]
[1728806313833,6.40154914,2468.6,2468.1,3.8063]
[1728806314534,2.04880923,2468.7,2468.4,1.49957632]
[1728806314535,0.85107282,2468.7,2468.4,1.49957632]
[1728806314731,0.85107282,2468.7,2468.4,0.7687]
[1728806314934,0.85107282,2468.8,2468.4,4.8199]
[1728806315242,1.60167282,2468.9,2468.4,5.85696863]
[1728806315537,0.85107282,2468.8,2468.4,5.85696863]
[1728806316436,1.60167282,2468.9,2468.4,7.35654495]
[1728806316637,0.85107282,2468.8,2468.4,7.35654495]
[1728806318111,0.85107282,2468.9,2468.7,2.25637632]
[1728806318315,0.85107282,2469.0,2468.7,2.25637632]
[1728806318521,0.85107282,2469.0,2468.8,4.05043]
[1728806318891,0.85107282,2469.1,2468.8,4.05043]
[1728806319338,0.85107282,2469.2,2468.8,4.05043]
[1728806319848,0.85107282,2469.2,2469.0,0.7568]
[1728806321540,0.85107282,2469.2,2469.0,2.25637632]
[1728806322553,0.85107282,2469.2,2469.0,0.7568]
[1728806322708,0.85107282,2469.3,2469.0,2.25637632]
[1728806323226,0.85107282,2469.3,2469.0,0.7568]
[1728806324206,0.85107282,2469.3,2469.0,1.4910561]
[1728806324612,0.85107282,2469.3,2469.0,2.99063242]
[1728806325120,4.90066282,2469.4,2469.0,2.99063242]
[1728806325940,4.90066282,2469.4,2469.0,1.4910561]
[1728806326242,4.90066282,2469.4,2469.0,2.99063242]
[1728806326399,4.90066282,2469.4,2469.0,1.4910561]
[1728806327608,6.40023914,2469.4,2469.0,1.4910561]
[1728806327808,4.04979,2469.3,2469.0,1.4910561]
[1728806328015,4.04979,2469.3,2468.8,2.53533095]
[1728806328016,4.04979,2469.3,2468.8,3.32903095]
[1728806330020,6.40023914,2469.4,2468.8,3.32903095]
[1728806330327,5.54916632,2469.4,2468.8,3.32903095]
[1728806330530,6.40023914,2469.4,2468.8,3.32903095]
[1728806334247,5.54916632,2469.4,2468.8,3.32903095]
[1728806334446,5.54916632,2469.4,2468.9,0.7379731]
[1728806337162,1.62747282,2469.5,2469.3,1.49957632]
[1728806337455,0.85107282,2469.5,2469.4,1.49957632]
[1728806337642,1.27660923,2469.6,2469.3,2.28737632]
[1728806337643,0.85107282,2469.6,2469.3,2.28737632]
[1728806337817,1.27660923,2469.7,2469.3,2.92109595]
[1728806337818,0.85107282,2469.7,2469.3,2.92109595]
[1728806338218,0.85107282,2469.8,2469.5,1.49957632]
[1728806338465,0.85107282,2469.9,2469.7,0.7878]
[1728806338770,0.85107282,2470.0,2469.7,0.7878]
[1728806339622,4.89965282,2470.0,2469.7,0.7878]
[1728806341142,4.04858,2470.0,2469.7,0.7878]
[1728806342537,5.54815632,2470.0,2469.7,0.7878]
[1728806343665,4.04858,2470.0,2469.7,0.7878]
[1728806344558,5.54815632,2470.0,2469.7,0.7878]
[1728806344762,4.04881,2469.9,2469.5,0.7878]
[1728806344964,4.04881,2469.9,2469.6,0.52873763]
[1728806345588,4.85678,2470.0,2469.6,0.52873763]
[1728806345885,8.90551,2470.0,2469.6,0.52873763]
[1728806346388,10.40508632,2470.0,2469.6,0.52873763]
[1728806346566,8.90551,2470.0,2469.6,0.52873763]
[1728806346948,10.40508632,2470.0,2469.6,0.52873763]
[1728806347149,8.90551,2470.0,2469.6,0.52873763]
[1728806347673,10.40508632,2470.0,2469.6,0.52873763]
[1728806348044,8.90551,2470.0,2469.6,0.52873763]
[1728806348475,10.40508632,2470.0,2469.6,0.52873763]
[1728806348954,4.04874,2469.9,2469.6,0.52873763]
[1728806349586,4.04892,2469.8,2469.5,0.7878]
[1728806353285,4.04917,2469.7,2469.3,1.40111963]
[1728806353695,4.04917,2469.7,2469.3,4.40111963]
[1728806356886,4.04892,2469.8,2469.3,4.40111963]
[1728806357089,8.09795,2469.8,2469.3,4.40111963]
[1728806358193,4.04892,2469.8,2469.3,4.40111963]
[1728806359296,0.85107282,2469.9,2469.4,0.5900696]
[1728806359510,4.89985282,2469.9,2469.4,5.08964592]
[1728806359671,4.89985282,2469.9,2469.4,3.5900696]
[1728806360678,6.39942914,2469.9,2469.4,3.5900696]
[1728806361616,4.89985282,2469.9,2469.4,3.5900696]
[1728806362268,0.85107282,2469.8,2469.4,3.5900696]
[1728806362460,0.85107282,2469.8,2469.5,1.05404656]
[1728806366176,0.85107282,2469.8,2469.4,3.5900696]
[1728806366376,0.85107282,2469.8,2469.4,3.0]
[1728806369082,4.89999282,2469.8,2469.4,3.0]
[1728806369397,4.89999282,2469.8,2469.3,2.90069595]
[1728806369398,0.85107282,2469.7,2469.3,3.7674]
[1728806369578,4.90016282,2469.7,2469.4,0.12679586]
[1728806369778,4.90016282,2469.7,2469.3,3.7674]
[1728806369975,0.85107282,2469.7,2469.4,0.1267963]
[1728806370179,0.85107282,2469.7,2469.3,3.7674]
[1728806370405,0.85107282,2469.7,2469.4,0.12679646]
[1728806370608,0.85107282,2469.7,2469.3,3.7674]
[1728806370774,0.85107282,2469.7,2469.4,0.12679631]
[1728806370978,0.85107282,2469.7,2469.3,3.7674]
[1728806371204,0.85107282,2469.7,2469.4,0.12679629]
[1728806371400,0.85107282,2469.7,2469.3,3.7674]
[1728806371600,0.85107282,2469.7,2469.4,0.12679637]
[1728806371811,4.89999282,2469.8,2469.3,5.26697632]
[1728806371977,0.85107282,2469.7,2469.4,0.126796]
[1728806372180,0.85107282,2469.7,2469.3,3.7674]
[1728806372415,0.85107282,2469.7,2469.4,0.12679637]
[1728806372627,0.85107282,2469.7,2469.3,3.7674]
[1728806372827,0.85107282,2469.7,2469.4,0.12679629]
[1728806373116,0.85107282,2469.7,2469.3,3.7674]
[1728806373289,0.85107282,2469.7,2469.4,0.12679586]
[1728806373481,1.62537282,2469.7,2469.3,3.7674]
[1728806373685,1.62537282,2469.7,2469.4,0.12679638]
[1728806373915,1.62537282,2469.7,2469.3,3.7674]
[1728806374089,1.62537282,2469.7,2469.4,0.12679655]
[1728806374280,5.67445282,2469.7,2469.3,3.7674]
[1728806374603,5.67445282,2469.7,2469.4,0.12679657]
[1728806374805,1.62537282,2469.7,2469.3,3.7674]
[1728806374985,1.62537282,2469.7,2469.4,0.12679658]
[1728806375187,1.62537282,2469.7,2469.3,4.0702084]
[1728806375422,1.62537282,2469.7,2469.4,0.12679664]
[1728806375717,1.62537282,2469.7,2469.3,4.0702084]
[1728806375876,1.62537282,2469.7,2469.4,0.12679655]
[1728806376081,1.62537282,2469.7,2469.5,0.12679655]
[1728806376284,1.62537282,2469.7,2469.3,4.0702084]
[1728806376535,1.62537282,2469.7,2469.3,3.7674]
[1728806376823,5.67458282,2469.7,2469.4,0.12679638]
[1728806377130,0.85107282,2469.6,2469.3,0.7674]
[1728806377302,0.85107282,2469.6,2469.4,0.12679807]
[1728806377622,0.85107282,2469.6,2469.3,0.7674]
[1728806377808,0.85107282,2469.6,2469.4,0.1267981]
[1728806377987,0.85107282,2469.6,2469.3,0.7674]
[1728806378220,0.85107282,2469.6,2469.4,0.12679823]
[1728806378389,0.85107282,2469.6,2469.3,0.7674]
[1728806378691,0.85107282,2469.6,2469.4,0.12679824]
[1728806379062,0.85107282,2469.6,2469.3,0.7674]
[1728806379184,0.85107282,2469.6,2469.4,0.12679822]
[1728806379384,0.85107282,2469.6,2469.5,0.12679822]
[1728806380220,0.85107282,2469.6,2469.3,1.07046279]
[1728806380429,0.85107282,2469.6,2469.4,0.12679735]
[1728806380609,0.85107282,2469.6,2469.5,0.12679735]
[1728806381182,2.05090923,2469.7,2469.5,0.12679735]
[1728806381381,2.05090923,2469.7,2469.3,0.7674]
[1728806381621,0.85096812,2469.5,2469.4,0.12679765]
[1728806382188,0.85096812,2469.5,2469.4,0.43006735]
[1728806383946,0.85096812,2469.5,2469.4,0.3032697]
[1728806384126,0.85096812,2469.5,2469.4,0.12679795]
[1728806384445,0.85096812,2469.5,2469.4,0.43018096]
[1728806386939,1.27660923,2469.6,2469.4,0.43018096]
[1728806387149,1.27660923,2469.6,2469.5,0.12679818]
[1728806387856,1.27660923,2469.6,2469.3,0.7674]
[1728806388032,1.27660923,2469.6,2469.5,0.12679786]
[1728806390615,1.40831924,2469.6,2469.5,0.12679786]
[1728806391126,3.10788348,2469.7,2469.5,0.12679786]
[1728806391341,1.40831924,2469.6,2469.3,2.26697632]
[1728806391555,1.27739659,2469.5,2469.4,1.4669022]
[1728806393826,1.27739659,2469.5,2469.4,0.43024757]
[1728806395256,1.27739659,2469.5,2469.3,0.7674]
[1728806395465,1.27739659,2469.5,2469.4,0.43026837]
[1728806399140,1.27739659,2469.5,2469.4,0.303422]
[1728806399367,1.27739659,2469.5,2469.4,0.43021997]
[1728806399553,3.10790653,2469.6,2469.4,0.12679797]
[1728806399757,1.40834229,2469.5,2469.3,0.7674]
[1728806400321,1.4084074,2469.5,2469.4,0.12680195]
[1728806400329,6.54944424,2469.6,2469.3,0.7674]
[1728806400330,4.84988,2469.6,2469.3,0.7674]
[1728806400701,2.12906896,2469.4,2469.3,0.7674]
[1728806400790,0.85160461,2469.4,2469.3,0.7674]
[1728806400977,0.85160461,2469.4,2469.3,0.12680307]
[1728806401220,0.85160461,2469.4,2469.3,1.23376268]
[1728806402244,0.85160461,2469.4,2469.3,1.23376217]
[1728806402455,0.85160461,2469.4,2469.3,0.93030256]
[1728806402673,0.85160461,2469.4,2469.3,0.93030263]
[1728806402873,0.85160461,2469.4,2469.3,1.23374617]
[1728806404475,0.85160461,2469.4,2469.3,1.54765701]
[1728806404879,0.85160461,2469.4,2469.3,3.04723333]
[1728806405243,0.85160461,2469.5,2469.3,3.04723333]
[1728806405452,0.85160461,2469.5,2469.4,0.43024617]
[1728806406090,1.27746435,2469.6,2469.4,0.43024617]
[1728806406401,1.27746435,2469.6,2469.5,0.12680263]
[1728806409559,1.27746435,2469.6,2469.3,2.30307632]
[1728806409752,1.27746435,2469.6,2469.4,1.04027363]
[1728806410254,1.27746435,2469.6,2469.5,0.12680016]
[1728806411754,1.27746435,2469.6,2469.5,0.4302225]
[1728806413374,1.27746435,2469.6,2469.5,0.4302762]
[1728806413974,1.27746435,2469.6,2469.5,1.1836762]
[1728806414170,0.85161122,2469.6,2469.5,1.85697145]
[1728806415003,0.85161122,2469.6,2469.5,3.35654777]
[1728806415304,0.85161122,2469.7,2469.5,7.40594777]
[1728806415468,0.85161122,2469.8,2469.6,1.92985252]
[1728806415671,0.85161122,2469.8,2469.7,2.6704473]
[1728806415900,0.85161122,2469.9,2469.7,1.17087098]
[1728806416095,0.85161122,2469.8,2469.7,2.2401711]
[1728806416399,0.85161122,2469.9,2469.7,2.67022646]
[1728806416699,0.85161122,2469.9,2469.8,0.43005536]
[1728806416991,0.85161122,2469.9,2469.8,6.30188632]
[1728806417156,0.85161122,2469.9,2469.8,3.38726068]
[1728806417354,0.85161122,2469.9,2469.8,3.38717846]
[1728806417776,0.85161122,2469.9,2469.8,6.38717846]
[1728806417986,0.85161122,2470.1,2469.8,6.38717846]
[1728806418165,0.85161122,2470.1,2469.9,0.12677887]
[1728806418366,0.85161122,2470.1,2470.0,0.12677887]
[1728806419679,0.85161122,2470.1,2469.9,1.49957632]
[1728806419856,0.85161122,2470.1,2469.9,2.50019276]
[1728806420058,0.85161122,2470.1,2470.0,0.12677296]
[1728806420938,6.10866435,2470.3,2470.0,0.12677296]
[1728806420939,0.85161122,2470.2,2470.0,0.12677296]
[1728806421089,0.85161122,2470.2,2469.9,1.00061644]
[1728806421433,0.85161122,2470.2,2469.9,2.50019276]
[1728806421585,0.85161122,2470.2,2469.9,1.00061644]
[1728806422236,0.85161122,2470.2,2469.9,2.50019276]
[1728806422408,0.85161122,2470.2,2469.9,1.00061644]
[1728806425236,0.85161122,2470.2,2469.8,3.7534]
[1728806427532,7.18242754,2470.3,2469.8,3.7534]
[1728806427730,5.68285122,2470.3,2469.8,3.7534]
[1728806427953,0.7807,2470.1,2469.7,5.54851632]
[1728806428146,0.7807,2470.1,2469.8,0.12677493]
[1728806428455,0.7807,2470.1,2469.7,5.54851632]
[1728806428657,0.7807,2470.1,2469.8,0.55485163]
[1728806429264,0.7807,2470.1,2469.8,0.68162757]
[1728806430158,0.7807,2470.1,2469.8,0.55485163]
[1728806430855,0.7807,2470.1,2469.8,0.12677566]
[1728806431049,0.7807,2470.1,2469.7,4.04894]
[1728806431556,0.7807,2470.1,2469.7,4.45718026]
[1728806434226,0.7807,2470.1,2469.7,5.95675658]
[1728806435319,0.85161122,2470.2,2469.8,6.31000632]
[1728806435542,0.85161122,2470.2,2469.8,6.01392302]
[1728806435836,0.8175,2470.3,2469.8,6.01392248]
[1728806435837,1.66911122,2470.3,2469.8,6.01392248]
[1728806436734,1.66911122,2470.3,2469.8,7.5134988]
[1728806436932,1.66911122,2470.3,2469.9,1.49957632]
[1728806437150,1.66911122,2470.3,2469.8,7.5134988]
[1728806437347,1.66911122,2470.3,2469.9,1.19706791]
[1728806437865,0.85161122,2470.3,2469.9,6.74536423]
[1728806438024,0.85161122,2470.4,2469.9,5.37256005]
[1728806438650,4.89954122,2470.4,2469.9,5.37256005]
[1728806440567,4.89954122,2470.4,2469.9,4.32384005]
[1728806440777,4.89954122,2470.4,2470.0,1.06338364]
[1728806443741,0.85161122,2470.4,2470.0,1.06338364]
[1728806443970,1.66381122,2470.5,2470.0,5.11195364]
[1728806444148,3.16338754,2470.5,2470.0,5.11195364]
[1728806445167,0.85161122,2470.4,2470.0,5.11195364]
[1728806445344,0.85161122,2470.4,2470.1,0.81119536]
[1728806448849,1.66381122,2470.5,2470.1,0.81119536]
[1728806449456,0.85161122,2470.4,2470.1,2.31077168]
[1728806449695,0.85161122,2470.4,2470.1,0.81119536]
[1728806452891,0.85161122,2470.4,2470.1,2.31077168]
[1728806453049,0.85161122,2470.4,2470.2,0.81909253]
[1728806454949,1.60851122,2470.4,2470.2,0.81909253]
[1728806455575,0.85161122,2470.3,2470.2,0.81909253]
[1728806455989,1.60851122,2470.4,2470.2,0.81909253]
[1728806456698,0.85161122,2470.3,2470.2,0.81909253]
[1728806459299,0.85161122,2470.3,2470.2,0.94585609]
[1728806460521,0.85161122,2470.3,2470.2,2.44543241]
[1728806462737,0.85161122,2470.3,2470.2,3.20933241]
[1728806463933,0.85161122,2470.3,2470.2,7.25758241]
[1728806464096,0.85161122,2470.4,2470.2,7.25758241]
[1728806464292,0.85161122,2470.4,2470.3,2.35209812]
[1728806465327,0.85161122,2470.4,2470.3,6.40018812]
[1728806465545,0.85161122,2470.5,2470.3,6.46249527]
[1728806465758,0.85161122,2470.5,2470.4,1.62633988]
[1728806465902,0.85161122,2470.5,2470.4,2.39023988]
[1728806466107,0.85161122,2470.7,2470.4,6.88363366]
[1728806466338,0.85161122,2470.7,2470.6,2.26347632]
[1728806466540,0.85161122,2470.7,2470.6,2.39023988]
[1728806467159,0.85161122,2470.7,2470.6,6.43782988]
[1728806467356,0.85161122,2470.8,2470.6,6.50012945]
[1728806467503,0.85161122,2470.9,2470.7,6.60177427]
[1728806467707,0.85161122,2470.9,2470.8,1.49957632]
[1728806469360,1.27746435,2471.0,2470.8,1.49957632]
[1728806469361,0.85161122,2471.0,2470.8,1.49957632]
[1728806469509,0.85161122,2471.0,2470.9,1.49957632]
[1728806469715,0.85161122,2471.1,2470.9,1.49957632]
[1728806470350,0.85161122,2471.1,2471.0,1.49957632]
[1728806470948,0.85161122,2471.1,2470.9,2.30877632]
[1728806471110,0.85161122,2471.2,2471.0,1.49957632]
[1728806472253,0.85161122,2471.2,2470.9,3.35609395]
[1728806472630,0.85161122,2471.2,2470.9,1.85651763]
[1728806472823,4.89809122,2471.3,2470.9,1.85651763]